bitfinex/quotes_BTCUSD_20240815
["timestamp","ask_amount","ask_price","bid_price","bid_amount"]
[1723749504954,0.08577727,57315.0,57309.0,0.30034454]
[1723749505196,0.08577727,57315.0,57309.0,0.47483554]
[1723749505440,0.44047727,57336.0,57313.0,0.174479]
[1723749505692,0.08577727,57321.0,57314.0,0.17155454]
[1723749505911,0.174474,57315.0,57314.0,0.17155454]
[1723749506147,0.023,57320.0,57314.0,0.18870999]
[1723749506405,0.023,57320.0,57315.0,0.3522]
[1723749506652,0.174471,57316.0,57315.0,0.52375454]
[1723749506846,0.523413,57316.0,57315.0,0.3522]
[1723749507070,0.523413,57316.0,57309.0,0.4522]
[1723749507071,0.174475,57315.0,57309.0,0.4522]
[1723749507270,0.023,57320.0,57310.0,0.17155454]
[1723749507539,0.08577727,57315.0,57310.0,0.17155454]
[1723749507812,0.023,57314.0,57309.0,0.3522]
[1723749508062,0.08577727,57315.0,57309.0,0.3522]
[1723749508063,0.08577727,57315.0,57310.0,0.17155454]
[1723749508318,0.023,57320.0,57309.0,0.526691]
[1723749508319,0.174465,57318.0,57311.0,0.17155454]
[1723749508577,0.08577727,57315.0,57311.0,0.17155454]
[1723749508846,0.08577727,57315.0,57309.0,0.3522]
[1723749509079,0.174483,57313.0,57309.0,0.52375454]
[1723749509343,0.174483,57313.0,57293.0,0.1]
[1723749509344,0.174556,57288.0,57287.0,0.0082]
[1723749510156,0.60923637,57288.0,57287.0,0.0082]
[1723749510330,1.30746237,57288.0,57287.0,0.0082]
[1723749510625,1.33046237,57288.0,57287.0,0.0082]
[1723749510845,0.98134937,57288.0,57287.0,0.0082]
[1723749512057,0.5584591,57288.0,57287.0,0.0092]
[1723749512268,0.5584591,57288.0,57287.0,0.35531354]
[1723749512269,0.012,57288.0,57287.0,0.35531354]
[1723749512473,0.3547,57313.0,57287.0,0.43572889]
[1723749512474,0.349012,57305.0,57287.0,0.43572889]
[1723749512745,0.51466362,57304.0,57294.0,0.3522]
[1723749512960,0.348971,57312.0,57295.0,0.20677454]
[1723749513170,0.174499,57307.0,57299.0,0.174522]
[1723749513385,0.174499,57307.0,57295.0,0.55584154]
[1723749513386,0.43476327,57309.0,57300.0,0.17155454]
[1723749513590,0.174502,57306.0,57300.0,0.17155454]
[1723749513796,0.06009139,57314.0,57304.0,0.5366]
[1723749514000,0.174481,57313.0,57305.0,0.17155454]
[1723749514238,0.174481,57313.0,57306.0,0.08826605]
[1723749514486,0.174495,57308.0,57307.0,0.17030454]
[1723749514700,0.348963,57313.0,57307.0,0.17030454]
[1723749514913,0.002,57309.0,57307.0,0.17030454]
[1723749515198,0.002,57309.0,57307.0,0.2498216]
[1723749515404,0.002,57309.0,57308.0,0.872586]
[1723749515616,0.069873,57337.0,57314.0,0.1915]
[1723749515826,0.348799,57340.0,57322.0,0.174453]
[1723749516026,0.348799,57340.0,57322.0,1.23551354]
[1723749516237,0.697598,57340.0,57322.0,1.58441954]
[1723749516455,0.08577727,57342.0,57322.0,1.58441954]
[1723749516456,0.68906462,57339.0,57322.0,1.58441954]
[1723749516656,0.174406,57338.0,57322.0,1.58441954]
[1723749516859,0.51466362,57339.0,57322.0,1.58441954]
[1723749517087,0.0019064,57323.0,57322.0,1.59841954]
[1723749517328,0.0019064,57323.0,57322.0,1.24951354]
[1723749517557,0.0029064,57323.0,57322.0,0.88545589]
[1723749517799,0.0029064,57323.0,57322.0,1.05190889]
[1723749518021,0.0039064,57323.0,57322.0,1.41481489]
[1723749518436,0.0029064,57323.0,57322.0,2.09862689]
[1723749518871,0.0039064,57323.0,57322.0,2.11262689]
[1723749519118,0.0039064,57323.0,57322.0,0.74015454]
[1723749519324,0.0029064,57323.0,57322.0,0.90060754]
[1723749519526,0.0019064,57323.0,57322.0,0.72615454]
[1723749519700,0.0029064,57323.0,57322.0,0.91460754]
[1723749519905,0.0029064,57323.0,57322.0,1.24951354]
[1723749520112,0.0029064,57323.0,57322.0,1.37586569]
[1723749520312,0.0029064,57323.0,57322.0,1.72477169]
[1723749520808,0.0039064,57323.0,57322.0,1.73877169]
[1723749521013,0.0039064,57323.0,57322.0,0.86650669]
[1723749521211,0.0039064,57323.0,57322.0,1.04095969]
[1723749521411,0.0039064,57323.0,57322.0,1.38986569]
[1723749521630,0.0039064,57323.0,57322.0,1.73877169]
[1723749522031,0.0039064,57323.0,57322.0,2.07367769]
[1723749522032,0.0029064,57323.0,57322.0,2.07367769]
[1723749522189,0.0029064,57323.0,57322.0,1.24951354]
[1723749522397,0.0039064,57323.0,57322.0,1.26351354]
[1723749522821,0.0029064,57323.0,57322.0,1.24951354]
[1723749523025,0.1773564,57323.0,57322.0,0.72615454]
[1723749523302,0.0039064,57323.0,57322.0,0.74015454]
[1723749523503,0.0019064,57323.0,57322.0,0.72615454]
[1723749523710,0.0009064,57323.0,57322.0,0.80221649]
[1723749523942,0.0029064,57323.0,57322.0,0.83021649]
[1723749524660,0.0029064,57323.0,57322.0,0.78021649]
[1723749524893,0.1773564,57323.0,57322.0,0.78021649]
[1723749525132,0.5262564,57323.0,57322.0,0.028]
[1723749525327,0.8751564,57323.0,57322.0,0.028]
[1723749525588,1.6082564,57323.0,57322.0,0.028]
[1723749526015,1.6082564,57323.0,57322.0,0.014]
[1723749526016,1.2583564,57323.0,57322.0,0.014]
[1723749526222,0.174469,57317.0,57310.0,0.536989]
[1723749526423,0.174472,57316.0,57311.0,0.17155454]
[1723749526623,0.174474,57315.0,57311.0,0.17155454]
[1723749526865,0.17448,57314.0,57311.0,0.17155454]
[1723749527067,0.348945,57316.0,57311.0,0.17155454]
[1723749527068,0.348943,57316.0,57311.0,0.17155454]
[1723749527239,0.08577727,57318.0,57311.0,0.20615979]
[1723749527443,0.174473,57316.0,57311.0,0.17155454]
[1723749527644,0.3941064,57323.0,57311.0,0.17155454]
[1723749527645,0.0099064,57323.0,57311.0,0.17155454]
[1723749527845,0.001,57315.0,57314.0,0.348954]
[1723749528045,0.001,57315.0,57314.0,0.69498554]
[1723749528286,0.001,57315.0,57314.0,1.50111764]
[1723749528691,0.001,57315.0,57314.0,1.85007164]
[1723749528889,0.002,57315.0,57314.0,2.21217164]
[1723749529207,0.002,57315.0,57314.0,2.41067164]
[1723749529393,0.0009064,57323.0,57322.0,1.234365]
[1723749529678,0.0009064,57323.0,57322.0,1.88026204]
[1723749529922,0.0009064,57323.0,57322.0,2.17476204]
[1723749530691,0.0009064,57323.0,57322.0,2.17676204]
[1723749530984,0.0019064,57323.0,57322.0,1.70941954]
[1723749531222,0.0019064,57323.0,57322.0,0.91160754]
[1723749531431,0.0019064,57323.0,57322.0,1.26051354]
[1723749531634,0.0019064,57323.0,57322.0,0.73715454]
[1723749531841,0.0019064,57323.0,57322.0,0.91160754]
[1723749532248,0.0019064,57323.0,57322.0,0.17855454]
[1723749532461,0.5262564,57323.0,57322.0,0.013]
[1723749532694,1.33663204,57323.0,57322.0,0.013]
[1723749532904,1.33563204,57323.0,57322.0,0.021]
[1723749533125,0.348921,57320.0,57304.0,0.3689]
[1723749533357,0.08577727,57316.0,57310.0,0.174489]
[1723749533589,0.08577727,57316.0,57311.0,0.17155454]
[1723749533837,0.08577727,57322.0,57313.0,0.174478]
[1723749534074,0.26023127,57322.0,57314.0,0.17155454]
[1723749534354,0.08577727,57322.0,57314.0,0.17155454]
[1723749534584,0.08577727,57322.0,57314.0,0.52050554]
[1723749534585,0.26023027,57322.0,57314.0,0.52050554]
[1723749534818,0.26023027,57322.0,57315.0,0.22652355]
[1723749535053,0.3618074,57323.0,57322.0,0.174453]
[1723749535054,0.0129064,57323.0,57322.0,0.174453]
[1723749535323,0.0129064,57323.0,57322.0,1.39621379]
[1723749535564,0.0129064,57323.0,57322.0,1.03481354]
[1723749535565,0.0009064,57323.0,57322.0,1.03481354]
[1723749535796,0.0009064,57323.0,57322.0,1.19238729]
[1723749536253,0.0009064,57323.0,57322.0,1.54129329]
[1723749536496,0.0009064,57323.0,57322.0,1.19238729]
[1723749536721,0.0029064,57323.0,57322.0,1.20938729]
[1723749536971,0.0029064,57323.0,57322.0,1.55029329]
[1723749537213,0.0039064,57323.0,57322.0,1.56429329]
[1723749537437,0.51556892,57345.0,57344.0,1.40383]
[1723749537634,0.51556892,57345.0,57344.0,1.57538454]
[1723749537841,0.0009053,57345.0,57344.0,1.57538454]
[1723749538046,0.0009053,57345.0,57344.0,1.22661254]
[1723749538276,0.0009053,57345.0,57344.0,1.344617]
[1723749538550,0.0009053,57345.0,57344.0,1.693389]
[1723749539039,0.0009053,57345.0,57344.0,1.344617]
[1723749539314,0.0009053,57345.0,57344.0,1.693389]
[1723749539852,0.5240543,57345.0,57344.0,0.18555454]
[1723749540112,0.0009053,57345.0,57344.0,0.18555454]
[1723749540351,0.1752883,57345.0,57344.0,0.009]
[1723749540565,0.1752883,57345.0,57344.0,0.023]
[1723749541031,0.0009053,57345.0,57344.0,0.014]
[1723749541253,0.0009053,57345.0,57344.0,0.19255454]
[1723749541712,0.0009053,57345.0,57344.0,0.18555454]
[1723749541918,0.0009053,57345.0,57344.0,0.18055454]
[1723749542129,0.0009053,57345.0,57344.0,0.35494054]
[1723749542334,0.0009053,57345.0,57344.0,0.18955454]
[1723749542534,0.8728203,57345.0,57344.0,0.018]
[1723749542736,0.8728203,57345.0,57344.0,0.009]
[1723749542956,0.8958203,57345.0,57344.0,0.016]
[1723749543163,1.2445863,57345.0,57344.0,0.016]
[1723749543368,0.5470543,57345.0,57344.0,0.009]
[1723749543572,0.0009053,57345.0,57344.0,0.18055454]
[1723749543809,0.0009053,57345.0,57344.0,0.20804929]
[1723749544006,0.0009053,57345.0,57344.0,0.17255454]
[1723749544219,0.0009053,57345.0,57344.0,0.35394054]
[1723749544429,0.0009053,57345.0,57344.0,0.17255454]
[1723749544918,0.0009053,57345.0,57344.0,1.76085654]
[1723749545131,0.0009053,57345.0,57344.0,2.12921108]
[1723749545335,0.0009053,57345.0,57344.0,2.13421108]
[1723749545336,0.0069053,57345.0,57344.0,2.13421108]
[1723749545744,0.05122704,57387.0,57344.0,2.13421108]
[1723749545745,0.57494477,57380.0,57352.0,0.002]
[1723749545951,0.51466362,57361.0,57360.0,0.523012]
[1723749546152,0.08577727,57378.0,57370.0,0.348611]
[1723749546362,0.51466362,57379.0,57372.0,0.1978]
[1723749546566,0.00906401,57381.0,57380.0,0.522829]
[1723749546787,0.00906401,57381.0,57380.0,0.890429]
[1723749547010,0.00906401,57381.0,57373.0,0.4508381]
[1723749547232,0.08577727,57380.0,57374.0,0.27127885]
[1723749547434,0.08577727,57380.0,57376.0,0.174287]
[1723749547641,0.08577727,57380.0,57377.0,0.17155454]
[1723749547849,0.26005427,57380.0,57377.0,0.17155454]
[1723749548099,0.00906401,57381.0,57378.0,0.02712789]
[1723749548298,0.00906401,57381.0,57380.0,0.174276]
[1723749548508,0.00906401,57381.0,57380.0,0.35083054]
[1723749548733,0.00906401,57381.0,57380.0,0.17655454]
[1723749548962,0.00906401,57381.0,57380.0,0.19192278]
[1723749549171,0.00906401,57381.0,57380.0,0.17155454]
[1723749549607,0.00906401,57381.0,57380.0,0.69438354]
[1723749549828,0.00906401,57381.0,57380.0,1.41053654]
[1723749550040,0.00906401,57381.0,57380.0,1.75908954]
[1723749550246,0.00906401,57381.0,57380.0,1.86508954]
[1723749550450,0.00906401,57381.0,57380.0,2.03664408]
[1723749550665,0.00906401,57381.0,57380.0,0.65015454]
[1723749550887,0.00906401,57381.0,57380.0,0.006]
[1723749550888,1.22897801,57381.0,57380.0,0.006]
[1723749551309,0.88043101,57381.0,57380.0,0.014]
[1723749551514,0.88043101,57381.0,57366.0,0.716238]
[1723749551515,0.174308,57370.0,57366.0,0.3676]
[1723749551736,0.08577727,57372.0,57367.0,0.17155454]
[1723749551952,0.00906401,57381.0,57380.0,0.007]
[1723749552163,0.00906401,57381.0,57380.0,0.35283054]
[1723749552381,0.00906401,57381.0,57380.0,0.34583054]
[1723749552585,0.00906401,57381.0,57380.0,0.61059409]
[1723749552788,0.00906401,57381.0,57380.0,0.17355454]
[1723749553007,0.00906401,57381.0,57380.0,0.17255454]
[1723749553874,0.00906401,57381.0,57380.0,0.34583054]
[1723749554293,0.00906401,57381.0,57380.0,0.17155454]
[1723749554773,0.00906401,57381.0,57380.0,0.19070999]
[1723749555587,0.00906401,57381.0,57380.0,0.19670999]
[1723749555793,0.00906401,57381.0,57380.0,0.20170999]
[1723749556028,0.00906401,57381.0,57380.0,0.21470999]
[1723749556758,0.00906401,57381.0,57380.0,0.38898599]
[1723749557005,0.00906401,57381.0,57380.0,1.63289199]
[1723749557237,0.0009053,57384.0,57383.0,0.871337]
[1723749557439,0.0009053,57384.0,57383.0,1.21444608]
[1723749557648,0.0009053,57384.0,57383.0,1.56298108]
[1723749557855,0.0009053,57384.0,57383.0,1.56498108]
[1723749558232,0.00906401,57400.0,57383.0,1.92468108]
[1723749558459,0.00906401,57400.0,57394.0,0.17155454]
[1723749558610,0.00906401,57400.0,57397.0,0.174223]
[1723749558813,0.00906401,57400.0,57398.0,0.17155454]
[1723749559011,0.00906401,57400.0,57398.0,0.52348058]
[1723749559215,0.00906401,57400.0,57399.0,0.871095]
[1723749559420,0.00906401,57400.0,57399.0,1.3703329]
[1723749560220,0.00906401,57400.0,57399.0,0.3121379]
[1723749560623,0.18328001,57400.0,57399.0,0.17155454]
[1723749560856,0.18328001,57400.0,57387.0,0.3597]
[1723749560857,0.199,57399.0,57387.0,0.3597]
[1723749561058,0.00906401,57400.0,57391.0,0.17155454]
[1723749561263,0.00906401,57400.0,57398.0,0.174219]
[1723749561464,0.00906401,57400.0,57399.0,0.34925762]
[1723749561627,0.00906401,57400.0,57399.0,1.06791154]
[1723749561827,0.00906401,57400.0,57399.0,1.41634954]
[1723749562031,0.00906401,57400.0,57399.0,1.60344954]
[1723749562409,0.00906401,57400.0,57399.0,0.17155454]
[1723749562672,0.00906401,57400.0,57390.0,0.2635]
[1723749562673,0.00906401,57400.0,57398.0,0.014]
[1723749562864,1.50431027,57399.0,57398.0,0.014]
[1723749563074,1.50431027,57399.0,57381.0,0.17155454]
[1723749563075,0.63321527,57399.0,57381.0,0.17155454]
[1723749563287,0.348541,57382.0,57381.0,0.17155454]
[1723749563504,0.80856927,57391.0,57381.0,0.22467999]
[1723749563715,0.65907727,57399.0,57381.0,0.22467999]
[1723749563968,0.08577727,57393.0,57382.0,0.058438]
[1723749564170,0.08577727,57393.0,57383.0,0.17155454]
[1723749564171,0.174259,57386.0,57383.0,0.17155454]
[1723749564405,0.174241,57392.0,57385.0,0.17426]
[1723749564608,0.01,57427.0,57382.0,0.41045805]
[1723749564609,0.357466,57403.0,57387.0,0.17155454]
[1723749564811,0.34846,57396.0,57388.0,0.05430808]
[1723749565017,0.09484128,57400.0,57388.0,0.05430808]
[1723749565018,0.174231,57395.0,57389.0,0.17155454]
[1723749565251,0.09484128,57400.0,57390.0,0.07486256]
[1723749565458,0.174221,57399.0,57392.0,0.174239]
[1723749565667,0.09484128,57400.0,57393.0,0.17155454]
[1723749565890,0.00906401,57400.0,57394.0,0.53125454]
[1723749566093,0.00906401,57400.0,57399.0,0.69421154]
[1723749566297,0.00906401,57400.0,57399.0,1.39108754]
[1723749566715,0.00906401,57400.0,57399.0,1.04264954]
[1723749566932,0.00906401,57400.0,57399.0,1.18176009]
[1723749567135,0.00906401,57400.0,57399.0,1.53019809]
[1723749567356,0.00906401,57400.0,57399.0,1.18176009]
[1723749567555,0.00906401,57400.0,57399.0,0.48488409]
[1723749567783,0.00906401,57400.0,57399.0,0.83332209]
[1723749567988,0.00906401,57400.0,57399.0,1.75928754]
[1723749568216,0.009053,57403.0,57402.0,0.871047]
[1723749568412,0.51466362,57413.0,57409.0,0.2635]
[1723749568621,0.51466362,57413.0,57410.0,0.19790454]
[1723749568828,0.08668148,57424.0,57410.0,0.17155454]
[1723749568829,0.08577727,57411.0,57410.0,0.17155454]
[1723749569034,0.174171,57415.0,57410.0,0.18870999]
[1723749569241,0.43410527,57418.0,57410.0,0.18870999]
[1723749569242,0.08577727,57418.0,57410.0,0.18870999]
[1723749569453,0.348345,57415.0,57411.0,0.018871]
[1723749569654,0.348345,57415.0,57412.0,0.17155454]
[1723749569860,0.174176,57413.0,57412.0,0.17155454]
[1723749570062,0.522529,57413.0,57412.0,0.17155454]
[1723749570273,0.348335,57416.0,57412.0,0.19089709]
[1723749570542,0.174173,57414.0,57412.0,0.19089709]
[1723749570757,0.174176,57413.0,57412.0,0.17155454]
[1723749571369,0.522529,57413.0,57412.0,0.17155454]
[1723749571585,0.174176,57413.0,57412.0,0.17155454]
[1723749571786,0.174176,57413.0,57412.0,0.18870999]
[1723749572020,0.174176,57413.0,57400.0,0.09093599]
[1723749572021,0.3664,57413.0,57400.0,0.09093599]
[1723749572220,0.60841427,57401.0,57400.0,0.09093599]
[1723749572431,0.95683927,57401.0,57400.0,0.09093599]
[1723749572856,1.30526427,57401.0,57400.0,0.09093599]
[1723749573067,0.95683927,57401.0,57400.0,0.09093599]
[1723749573640,0.95883927,57401.0,57400.0,0.09193599]
[1723749573842,0.002,57401.0,57400.0,0.26449053]
[1723749574045,0.524637,57401.0,57400.0,0.26449053]
[1723749574380,0.524637,57401.0,57400.0,0.29093958]
[1723749574381,0.176212,57401.0,57400.0,0.29093958]
[1723749574510,0.176212,57401.0,57400.0,0.26349053]
[1723749574704,0.524637,57401.0,57400.0,0.26349053]
[1723749574909,0.174212,57401.0,57400.0,0.26249053]
[1723749575105,0.522637,57401.0,57400.0,0.26249053]
[1723749575324,0.524637,57401.0,57400.0,0.26249053]
[1723749575727,0.522637,57401.0,57400.0,0.26249053]
[1723749575929,0.871062,57401.0,57400.0,0.26249053]
[1723749576147,1.233662,57401.0,57400.0,0.09093599]
[1723749576361,2.13470047,57401.0,57400.0,0.09093599]
[1723749576565,1.80927547,57401.0,57400.0,0.09093599]
[1723749576765,1.80927547,57401.0,57400.0,0.09175499]
[1723749576972,2.15770047,57401.0,57400.0,0.06587374]
[1723749577179,2.32925501,57401.0,57400.0,0.06587374]
[1723749577380,2.15770047,57401.0,57400.0,0.06587374]
[1723749577799,2.15769964,57401.0,57400.0,0.06587374]
[1723749578240,1.80927464,57401.0,57400.0,0.06587374]
[1723749578486,0.002,57401.0,57400.0,0.23742828]
[1723749578725,0.002,57401.0,57400.0,0.26117111]
[1723749578964,0.174192,57408.0,57401.0,0.174212]
[1723749579205,0.00921255,57417.0,57400.0,0.23742828]
[1723749579206,0.34834,57416.0,57403.0,0.17155454]
[1723749579418,0.3492539,57413.0,57404.0,0.51563791]
[1723749579637,0.348366,57411.0,57404.0,0.51215454]
[1723749579844,0.522601,57405.0,57404.0,0.17155454]
[1723749580051,0.348389,57407.0,57404.0,0.17155454]
[1723749580257,0.1742,57405.0,57404.0,0.17155454]
[1723749580485,0.174197,57406.0,57404.0,0.17155454]
[1723749580694,0.174196,57407.0,57404.0,0.17155454]
[1723749580894,0.174197,57406.0,57404.0,0.17155454]
[1723749581316,0.176194,57408.0,57404.0,0.17355454]
[1723749581571,0.174199,57406.0,57404.0,0.17355454]
[1723749581705,0.1742,57405.0,57404.0,0.17355454]
[1723749582118,0.522601,57405.0,57404.0,0.17355454]
[1723749582335,0.522601,57405.0,57404.0,0.17455454]
[1723749582546,1.219403,57405.0,57404.0,0.17455454]
[1723749582711,1.3768433,57405.0,57404.0,0.003]
[1723749582973,1.3768433,57405.0,57400.0,0.06587374]
[1723749582974,0.871062,57401.0,57400.0,0.06587374]
[1723749583158,1.30526427,57401.0,57400.0,0.06587374]
[1723749583764,1.8190558,57401.0,57400.0,0.06587374]
[1723749583973,2.23620708,57401.0,57400.0,0.06587374]
[1723749584311,2.62295222,57401.0,57400.0,4.52e-06]
[1723749584499,2.62295222,57401.0,57400.0,0.00600452]
[1723749584621,2.9660613,57401.0,57400.0,0.00600452]
[1723749584829,3.03717275,57401.0,57400.0,0.00600452]
[1723749585037,2.93700847,57401.0,57400.0,0.00600452]
[1723749585241,2.93700591,57401.0,57400.0,0.00600452]
[1723749585485,2.99723847,57401.0,57400.0,0.00600452]
[1723749585643,2.9370056,57401.0,57400.0,0.00600452]
[1723749585919,2.5885806,57401.0,57400.0,0.00600452]
[1723749586100,2.5885806,57401.0,57400.0,4.52e-06]
[1723749586313,2.24547152,57401.0,57400.0,0.00700452]
[1723749586629,2.23620421,57401.0,57400.0,0.00800452]
[1723749586830,2.23620421,57401.0,57400.0,0.00100452]
[1723749587047,2.23820421,57401.0,57400.0,0.00200452]
[1723749587467,2.23820421,57401.0,57400.0,5.2e-07]
[1723749587468,2.92973829,57401.0,57400.0,5.2e-07]
[1723749587671,2.92973829,57401.0,57370.0,0.51466362]
[1723749587672,1.776314,57381.0,57370.0,0.51466362]
[1723749588076,1.776314,57381.0,57365.0,0.3664]
[1723749588278,1.799314,57381.0,57365.0,0.3664]
[1723749589097,1.219914,57381.0,57365.0,0.3664]
[1723749589323,0.871367,57381.0,57367.0,0.348632]
[1723749589726,0.871367,57381.0,57368.0,0.00124844]
[1723749589938,0.174256,57387.0,57380.0,0.17237354]
[1723749590067,0.348489,57391.0,57381.0,0.58183389]
[1723749590317,0.014,57401.0,57382.0,0.17155454]
[1723749590589,0.174247,57390.0,57383.0,0.25047409]
[1723749590788,0.348475,57393.0,57384.0,0.17155454]
[1723749591024,0.174246,57390.0,57384.0,0.17155454]
[1723749591218,0.1862,57402.0,57384.0,0.17155454]
[1723749591219,0.522784,57385.0,57384.0,0.17155454]
[1723749591566,1.21733,57385.0,57384.0,0.17155454]
[1723749591771,0.3617,57390.0,57382.0,0.001]
[1723749591772,1.219872,57383.0,57382.0,0.001]
[1723749592303,1.6903942,57383.0,57382.0,0.001]
[1723749592511,1.7133942,57383.0,57382.0,0.001]
[1723749592712,1.242872,57383.0,57382.0,0.001]
[1723749593071,1.244872,57383.0,57382.0,0.001]
[1723749593677,1.244872,57383.0,57380.0,0.000819]
[1723749593678,1.219914,57381.0,57380.0,0.000819]
[1723749593990,1.242914,57381.0,57380.0,0.000819]
[1723749594193,1.568461,57381.0,57380.0,0.000819]
[1723749594554,1.242914,57381.0,57380.0,0.000819]
[1723749594753,1.604614,57381.0,57380.0,0.000819]
[1723749594984,2.33461611,57381.0,57380.0,0.000819]
[1723749595529,2.36364548,57381.0,57380.0,0.000819]
[1723749595767,2.33461611,57381.0,57380.0,0.000819]
[1723749595971,2.36364477,57381.0,57380.0,0.000819]
[1723749596179,2.53519931,57381.0,57380.0,0.000819]
[1723749596397,2.49007008,57381.0,57380.0,0.000819]
[1723749596612,2.51560492,57381.0,57380.0,0.000819]
[1723749596824,2.89318582,57381.0,57380.0,0.000819]
[1723749597046,2.89318582,57381.0,57380.0,0.001819]
[1723749597047,2.89215192,57381.0,57380.0,0.001819]
[1723749597272,0.174361,57352.0,57349.0,0.3724]
[1723749597702,0.523084,57352.0,57349.0,0.3724]
[1723749597903,0.523084,57352.0,57351.0,0.17945454]
[1723749598130,0.3596,57370.0,57351.0,0.17945454]
[1723749598346,0.5449,57378.0,57352.0,0.22673999]
[1723749598567,0.86322762,57379.0,57359.0,0.72385454]
[1723749598568,0.51466362,57379.0,57359.0,0.72385454]
[1723749598781,0.51466362,57379.0,57362.0,0.174329]
[1723749598782,0.174306,57371.0,57362.0,0.174329]
[1723749599013,0.523084,57352.0,57348.0,0.3544]
[1723749599254,0.871807,57352.0,57345.0,0.36259]
[1723749599500,0.348712,57354.0,57345.0,0.536971]
[1723749599725,0.348712,57354.0,57345.0,0.36259]
[1723749599726,0.174361,57352.0,57345.0,0.36259]
[1723749599959,0.871807,57352.0,57345.0,0.36259]
[1723749600201,0.52314,57346.0,57345.0,0.00819]
[1723749600444,0.8719,57346.0,57345.0,0.00819]
[1723749600679,1.22066,57346.0,57345.0,0.00819]
[1723749600935,1.24366,57346.0,57345.0,0.00819]
[1723749601178,0.17438,57346.0,57345.0,0.17974454]
[1723749601622,0.001,57346.0,57345.0,0.53414454]
[1723749601828,0.001,57346.0,57345.0,1.40605954]
[1723749602070,0.001,57346.0,57345.0,1.60545954]
[1723749602320,0.17432,57366.0,57363.0,0.5538]
[1723749602561,0.174311,57369.0,57364.0,0.17155454]
[1723749602801,0.51466362,57377.0,57364.0,0.27895739]
[1723749603043,0.348619,57370.0,57364.0,0.27895739]
[1723749603352,0.3467,57381.0,57364.0,0.27895739]
[1723749603577,0.86322562,57379.0,57364.0,0.45328039]
[1723749603816,0.348567,57378.0,57368.0,0.174312]
[1723749604048,0.174296,57374.0,57369.0,0.17155454]
[1723749604286,0.34858,57376.0,57370.0,0.06945065]
[1723749604491,0.174302,57372.0,57371.0,0.17155454]
[1723749604697,0.174297,57374.0,57371.0,0.19565506]
[1723749604892,0.362552,57381.0,57372.0,0.3641]
[1723749604893,0.014,57381.0,57372.0,0.3641]
[1723749605128,0.014,57381.0,57373.0,0.22753005]
[1723749605281,0.174292,57375.0,57373.0,0.22753005]
[1723749605481,0.174284,57378.0,57373.0,0.22753005]
[1723749605686,0.014,57381.0,57373.0,0.22753005]
[1723749605917,0.522883,57374.0,57373.0,0.17155454]
[1723749606099,0.871472,57374.0,57373.0,0.17155454]
[1723749606477,0.522966,57365.0,57364.0,0.3557]
[1723749606678,0.08577727,57377.0,57364.0,0.59097804]
[1723749606679,0.348595,57374.0,57364.0,0.59097804]
[1723749606880,0.08577727,57377.0,57365.0,0.42491434]
[1723749606881,0.174306,57371.0,57365.0,0.42491434]
[1723749607104,0.08577727,57377.0,57365.0,0.25059234]
[1723749607278,0.174311,57369.0,57366.0,0.08056923]
[1723749607478,0.004,57374.0,57368.0,0.3557]
[1723749607659,0.174298,57373.0,57369.0,0.26720122]
[1723749608072,0.001,57371.0,57369.0,0.26720122]
[1723749608273,0.001,57371.0,57363.0,0.2635]
[1723749608542,0.001,57371.0,57349.0,0.0079]
[1723749608543,0.871807,57352.0,57349.0,0.0079]
[1723749608770,2.08351097,57352.0,57349.0,0.0079]
[1723749608980,2.08351097,57352.0,57345.0,0.00819]
[1723749608981,2.40391097,57352.0,57345.0,0.00819]
[1723749609190,2.40391097,57352.0,57351.0,6e-08]
[1723749609605,2.92418851,57352.0,57351.0,6e-08]
[1723749609818,2.96929281,57352.0,57351.0,6e-08]
[1723749610234,2.85310285,57352.0,57351.0,6e-08]
[1723749610437,2.88209884,57352.0,57351.0,6e-08]
[1723749610873,2.51837985,57352.0,57351.0,0.00100006]
[1723749611076,2.51837985,57352.0,57351.0,6e-08]
[1723749611077,2.48828481,57352.0,57351.0,6e-08]
[1723749611489,2.50228481,57352.0,57351.0,0.00100006]
[1723749611907,2.51628481,57352.0,57351.0,0.00200006]
[1723749612339,0.885807,57352.0,57351.0,0.00100006]
[1723749612563,1.23453,57352.0,57351.0,0.00100006]
[1723749612768,0.885807,57352.0,57351.0,0.00100006]
[1723749613181,1.23453,57352.0,57351.0,0.00100006]
[1723749613383,0.885807,57352.0,57351.0,6e-08]
[1723749613604,0.913807,57352.0,57351.0,0.00200006]
[1723749614118,0.885807,57352.0,57351.0,0.00100006]
[1723749614331,1.24853,57352.0,57351.0,0.00200006]
[1723749614662,1.24853,57352.0,57351.0,0.1735546]
[1723749614663,0.028,57352.0,57351.0,0.1735546]
[1723749614881,0.028,57352.0,57351.0,0.40138406]
[1723749615082,0.014,57352.0,57351.0,0.22602006]
[1723749615675,0.182361,57352.0,57351.0,0.1735546]
[1723749615883,0.008,57352.0,57351.0,0.1725546]
[1723749616110,0.174359,57353.0,57351.0,0.1725546]
[1723749616348,0.96658427,57352.0,57351.0,0.1805546]
[1723749616577,0.96658427,57352.0,57351.0,6e-08]
[1723749616578,1.83850727,57352.0,57351.0,6e-08]
[1723749616792,1.83850727,57352.0,57345.0,0.00819]
[1723749616793,1.22066,57346.0,57345.0,6e-08]
[1723749617004,2.01695961,57346.0,57345.0,6e-08]
[1723749617207,2.01695961,57346.0,57342.0,6e-08]
[1723749617208,1.217645,57343.0,57342.0,6e-08]
[1723749617422,2.08321897,57343.0,57342.0,6e-08]
[1723749617649,2.08322806,57343.0,57342.0,6e-08]
[1723749617860,2.43200606,57343.0,57342.0,6e-08]
[1723749618297,2.386979,57343.0,57342.0,6e-08]
[1723749618541,2.43200721,57343.0,57342.0,6e-08]
[1723749618798,2.65600617,57343.0,57342.0,6e-08]
[1723749619040,2.112364,57326.0,57325.0,0.00819]
[1723749619307,2.73464298,57326.0,57325.0,1e-06]
[1723749619547,3.18352398,57326.0,57325.0,1e-06]
[1723749619794,3.35108192,57326.0,57325.0,1e-06]
[1723749620043,0.75795592,57326.0,57322.0,1e-06]
[1723749620276,0.52335,57323.0,57322.0,1e-06]
[1723749620482,2.33007071,57323.0,57322.0,1e-06]
[1723749620722,2.51695242,57323.0,57322.0,1e-06]
[1723749620932,3.14981242,57323.0,57322.0,1e-06]
[1723749621203,2.42307071,57323.0,57322.0,1e-06]
[1723749621426,2.23545,57323.0,57322.0,1e-06]
[1723749621853,2.40700454,57323.0,57322.0,1e-06]